[Event "Late-Titled-Tuesday-Blitz-May-14-2024"]
[Site "Chess.com"]
[Date "2024.05.14"]
[Round "11"]
[White "Kira170"]
[Black "hblanco"]
[Result "0-1"]
[WhiteElo "2754"]
[BlackElo "2647"]
[TimeControl "180+1"]
[EndTime "16:04:21 PDT"]
[Termination "hblanco won by resignation"]

1. d4 {[%clk 0:03:00.9]} 1... d5 {[%clk 0:02:59.8]} 2. c4 {[%clk 0:02:59.9]}
2... e6 {[%clk 0:02:59.9]} 3. Nf3 {[%clk 0:03:00.4]} 3... Nf6 {[%clk 0:03:00]}
4. Nc3 {[%clk 0:03:00.7]} 4... Nbd7 {[%clk 0:03:00.2]} 5. g3 {[%clk 0:02:57]}
5... dxc4 {[%clk 0:02:58.4]} 6. Bg2 {[%clk 0:02:56.9]} 6... Rb8 {[%clk
0:02:58.8]} 7. a4 {[%clk 0:02:54.5]} 7... Bb4 {[%clk 0:02:54]} 8. O-O {[%clk
0:02:54.4]} 8... O-O {[%clk 0:02:53.7]} 9. Qc2 {[%clk 0:02:55]} 9... a6 {[%clk
0:02:34.9]} 10. Rd1 {[%clk 0:02:53.3]} 10... Qe7 {[%clk 0:02:33.7]} 11. e4
{[%clk 0:02:38.2]} 11... b5 {[%clk 0:01:50.8]} 12. axb5 {[%clk 0:02:34.4]} 12...
axb5 {[%clk 0:01:51.7]} 13. e5 {[%clk 0:02:33.1]} 13... Nd5 {[%clk 0:01:51.1]}
14. Nxd5 {[%clk 0:02:27]} 14... exd5 {[%clk 0:01:52]} 15. Ng5 {[%clk 0:02:25.6]}
15... g6 {[%clk 0:01:44.8]} 16. Bxd5 {[%clk 0:02:25.1]} 16... Nb6 {[%clk
0:01:34.3]} 17. Be4 {[%clk 0:02:05.9]} 17... c5 {[%clk 0:01:33.7]} 18. Be3
{[%clk 0:01:57.3]} 18... cxd4 {[%clk 0:01:23.7]} 19. Rxd4 {[%clk 0:01:56.6]}
19... Bc5 {[%clk 0:01:24.3]} 20. h4 {[%clk 0:01:45.6]} 20... Bxd4 {[%clk
0:01:09.4]} 21. Bxd4 {[%clk 0:01:46.5]} 21... Rd8 {[%clk 0:01:09.9]} 22. Be3
{[%clk 0:01:41.3]} 22... Nd5 {[%clk 0:00:59.9]} 23. Bxd5 {[%clk 0:00:42.1]}
23... Rxd5 {[%clk 0:01:00.8]} 24. Bf4 {[%clk 0:00:42.4]} 24... Bf5 {[%clk
0:00:58.8]} 25. Qe2 {[%clk 0:00:37]} 25... Rbd8 {[%clk 0:00:58.8]} 26. Kh2
{[%clk 0:00:33.2]} 26... Rd3 {[%clk 0:00:51.1]} 27. Ra6 {[%clk 0:00:29.5]} 27...
b4 {[%clk 0:00:46.3]} 28. e6 {[%clk 0:00:25]} 28... fxe6 {[%clk 0:00:42.9]} 29.
Qe5 {[%clk 0:00:19.1]} 29... R3d5 {[%clk 0:00:36.2]} 30. Qe3 {[%clk 0:00:18.5]}
30... e5 {[%clk 0:00:33.9]} 31. Nf3 {[%clk 0:00:16]} 31... Re8 {[%clk
0:00:26.1]} 32. Ra7 {[%clk 0:00:14.3]} 32... Qc5 {[%clk 0:00:16.6]} 33. Bh6
{[%clk 0:00:10.2]} 33... Qxe3 {[%clk 0:00:15.4]} 34. Rg7+ {[%clk 0:00:09]} 34...
Kh8 {[%clk 0:00:15.3]} 35. fxe3 {[%clk 0:00:09.9]} 35... Rd7 {[%clk 0:00:11.7]}
36. Rxd7 {[%clk 0:00:09.7]} 36... Bxd7 {[%clk 0:00:12.6]} 37. Ng5 {[%clk
0:00:04.9]} 37... Kg8 {[%clk 0:00:11.7]} 38. Ne4 {[%clk 0:00:04.6]} 38... Re6
{[%clk 0:00:10.3]} 39. Bg5 {[%clk 0:00:02.4]} 39... Bc6 {[%clk 0:00:10.4]} 40.
Nc5 {[%clk 0:00:01.4]} 40... Rd6 {[%clk 0:00:10.4]} 41. g4 {[%clk 0:00:01.8]}
41... Rd2+ {[%clk 0:00:10.3]} 42. Kg3 {[%clk 0:00:01.7]} 42... Rxb2 {[%clk
0:00:08.5]} 43. Bf6 {[%clk 0:00:02.3]} 43... Rg2+ {[%clk 0:00:07.9]} 44. Kh3
{[%clk 0:00:02.1]} 44... Re2 {[%clk 0:00:08.1]} 45. Bxe5 {[%clk 0:00:02.8]}
45... Rxe3+ {[%clk 0:00:08.1]} 0-1

[Event "Late-Titled-Tuesday-Blitz-May-14-2024"]
[Site "Chess.com"]
[Date "2024.05.14"]
[Round "11"]
[White "emeli_chess"]
[Black "Felix-Rose"]
[Result "1-0"]
[WhiteElo "2415"]
[BlackElo "2317"]
[TimeControl "180+1"]
[EndTime "16:04:25 PDT"]
[Termination "emeli_chess won on time"]

1. d4 {[%clk 0:03:00.9]} 1... d5 {[%clk 0:02:55.9]} 2. c4 {[%clk 0:02:58.6]}
2... e6 {[%clk 0:02:56]} 3. Nc3 {[%clk 0:02:58.7]} 3... Nf6 {[%clk 0:02:55.7]}
4. cxd5 {[%clk 0:02:58.8]} 4... exd5 {[%clk 0:02:56.6]} 5. Bg5 {[%clk
0:02:58.6]} 5... c6 {[%clk 0:02:57.3]} 6. Qc2 {[%clk 0:02:58]} 6... Be7 {[%clk
0:02:57.8]} 7. e3 {[%clk 0:02:58.4]} 7... Nbd7 {[%clk 0:02:58.4]} 8. Bd3 {[%clk
0:02:58.2]} 8... h6 {[%clk 0:02:58.6]} 9. Bh4 {[%clk 0:02:57.8]} 9... Nh5 {[%clk
0:02:59.2]} 10. Bxe7 {[%clk 0:02:56.1]} 10... Qxe7 {[%clk 0:03:00.1]} 11. Nge2
{[%clk 0:02:55.6]} 11... Nb6 {[%clk 0:02:59]} 12. O-O {[%clk 0:02:52.9]} 12...
O-O {[%clk 0:02:58.8]} 13. Rae1 {[%clk 0:02:51.7]} 13... Bd7 {[%clk 0:02:58.8]}
14. Nc1 {[%clk 0:02:40.9]} 14... Rae8 {[%clk 0:02:58.7]} 15. Nb3 {[%clk
0:02:34.9]} 15... Nc8 {[%clk 0:02:53.2]} 16. Nc5 {[%clk 0:02:33.8]} 16... Nd6
{[%clk 0:02:52.7]} 17. Nxd7 {[%clk 0:02:23.4]} 17... Qxd7 {[%clk 0:02:52.6]} 18.
Na4 {[%clk 0:02:20.2]} 18... f5 {[%clk 0:02:47.6]} 19. Nc5 {[%clk 0:02:19]}
19... Qc8 {[%clk 0:02:47.4]} 20. Qe2 {[%clk 0:02:02.1]} 20... Nf6 {[%clk
0:02:44.8]} 21. f3 {[%clk 0:01:53.7]} 21... Re7 {[%clk 0:02:40.4]} 22. Qf2
{[%clk 0:01:53]} 22... Rfe8 {[%clk 0:02:40]} 23. Re2 {[%clk 0:01:52]} 23... b6
{[%clk 0:02:11.1]} 24. Nb3 {[%clk 0:01:39.4]} 24... c5 {[%clk 0:02:08.7]} 25.
Bb1 {[%clk 0:01:37.1]} 25... c4 {[%clk 0:02:06.9]} 26. Nd2 {[%clk 0:01:35.2]}
26... b5 {[%clk 0:02:07.4]} 27. a3 {[%clk 0:01:34.3]} 27... a5 {[%clk
0:02:07.1]} 28. Rfe1 {[%clk 0:01:31.9]} 28... b4 {[%clk 0:02:06.9]} 29. a4
{[%clk 0:01:29.3]} 29... Qc6 {[%clk 0:02:04.4]} 30. b3 {[%clk 0:01:19.2]} 30...
cxb3 {[%clk 0:01:53]} 31. Nxb3 {[%clk 0:01:18.9]} 31... Qxa4 {[%clk 0:01:52.8]}
32. Nc5 {[%clk 0:01:18.9]} 32... Qb5 {[%clk 0:01:48.6]} 33. Bc2 {[%clk
0:01:16.1]} 33... Rb8 {[%clk 0:01:28.8]} 34. Ba4 {[%clk 0:01:15.3]} 34... Qb6
{[%clk 0:01:21.5]} 35. Qg3 {[%clk 0:01:05.6]} 35... Nb5 {[%clk 0:01:16.4]} 36.
Rb2 {[%clk 0:00:45.2]} 36... Nc3 {[%clk 0:01:14.3]} 37. Bb3 {[%clk 0:00:45]}
37... Rbe8 {[%clk 0:01:04.1]} 38. e4 {[%clk 0:00:38.1]} 38... fxe4 {[%clk
0:00:59.7]} 39. fxe4 {[%clk 0:00:38]} 39... Nfxe4 {[%clk 0:00:56.3]} 40. Nxe4
{[%clk 0:00:30.6]} 40... Rxe4 {[%clk 0:00:52.7]} 41. Rxe4 {[%clk 0:00:27.3]}
41... Rxe4 {[%clk 0:00:52.5]} 42. Qxc3 {[%clk 0:00:26.7]} 42... Rxd4 {[%clk
0:00:21.5]} 43. Qc8+ {[%clk 0:00:26.2]} 43... Kh7 {[%clk 0:00:20.7]} 44. Qf5+
{[%clk 0:00:23.6]} 44... Kg8 {[%clk 0:00:18]} 45. Kh1 {[%clk 0:00:19.6]} 45...
Qc5 {[%clk 0:00:13.7]} 46. Rf2 {[%clk 0:00:13.2]} 46... a4 {[%clk 0:00:06.5]}
47. Bc2 {[%clk 0:00:09]} 1-0

[Event "Late-Titled-Tuesday-Blitz-May-14-2024"]
[Site "Chess.com"]
[Date "2024.05.14"]
[Round "11"]
[White "jeetjain"]
[Black "oskariot"]
[Result "1/2-1/2"]
[WhiteElo "2590"]
[BlackElo "2771"]
[TimeControl "180+1"]
[EndTime "16:04:34 PDT"]
[Termination "Game drawn - insufficient material"]

1. Nf3 {[%clk 0:02:53.6]} 1... c5 {[%clk 0:03:00]} 2. b3 {[%clk 0:02:53.5]} 2...
g6 {[%clk 0:03:00.6]} 3. Bb2 {[%clk 0:02:53.8]} 3... Nf6 {[%clk 0:03:01.5]} 4.
e3 {[%clk 0:02:54.3]} 4... Bg7 {[%clk 0:03:01.7]} 5. d4 {[%clk 0:02:54.7]} 5...
cxd4 {[%clk 0:02:52.7]} 6. exd4 {[%clk 0:02:55.6]} 6... O-O {[%clk 0:02:52.4]}
7. Bd3 {[%clk 0:02:54.2]} 7... d5 {[%clk 0:02:53.1]} 8. O-O {[%clk 0:02:54.2]}
8... Nc6 {[%clk 0:02:54]} 9. h3 {[%clk 0:02:54.2]} 9... Nb4 {[%clk 0:02:53.2]}
10. Be2 {[%clk 0:02:49.6]} 10... Bf5 {[%clk 0:02:53.7]} 11. Na3 {[%clk
0:02:49.7]} 11... Rc8 {[%clk 0:02:53.9]} 12. c3 {[%clk 0:02:49.8]} 12... Nc6
{[%clk 0:02:54.6]} 13. Nc2 {[%clk 0:02:49.2]} 13... Ne4 {[%clk 0:02:55]} 14. Ne3
{[%clk 0:02:47.4]} 14... Be6 {[%clk 0:02:43.8]} 15. c4 {[%clk 0:02:38.2]} 15...
Nf6 {[%clk 0:02:29.9]} 16. c5 {[%clk 0:02:37.3]} 16... b6 {[%clk 0:02:28.3]} 17.
cxb6 {[%clk 0:02:33.4]} 17... Qxb6 {[%clk 0:02:26.1]} 18. Ne5 {[%clk 0:02:32.7]}
18... Rfd8 {[%clk 0:02:10.9]} 19. Nxc6 {[%clk 0:02:28.1]} 19... Rxc6 {[%clk
0:02:07.3]} 20. Rc1 {[%clk 0:02:28]} 20... Ne4 {[%clk 0:02:04.3]} 21. Rxc6
{[%clk 0:02:25.9]} 21... Qxc6 {[%clk 0:02:05.2]} 22. Qc1 {[%clk 0:02:26.2]}
22... Qb6 {[%clk 0:02:00.5]} 23. Rd1 {[%clk 0:02:24.7]} 23... Rc8 {[%clk
0:01:53.8]} 24. Qa1 {[%clk 0:02:24.2]} 24... Bh6 {[%clk 0:01:44.1]} 25. Bd3
{[%clk 0:02:23.2]} 25... Qd6 {[%clk 0:01:07.2]} 26. Bxe4 {[%clk 0:02:16.8]}
26... dxe4 {[%clk 0:01:08.1]} 27. d5 {[%clk 0:02:17.1]} 27... Bd7 {[%clk
0:01:05.7]} 28. Be5 {[%clk 0:02:16.5]} 28... Qb6 {[%clk 0:01:04.2]} 29. Qd4
{[%clk 0:02:15.5]} 29... Qxd4 {[%clk 0:01:00.9]} 30. Bxd4 {[%clk 0:02:16.4]}
30... f5 {[%clk 0:00:55.6]} 31. Bxa7 {[%clk 0:02:12]} 31... Ra8 {[%clk
0:00:55.6]} 32. Bc5 {[%clk 0:02:11.7]} 32... Rxa2 {[%clk 0:00:56.5]} 33. Bxe7
{[%clk 0:02:11.6]} 33... Kf7 {[%clk 0:00:57.4]} 34. Bc5 {[%clk 0:02:08.3]} 34...
Rb2 {[%clk 0:00:50.4]} 35. b4 {[%clk 0:02:02.7]} 35... Bg7 {[%clk 0:00:49.9]}
36. Nc4 {[%clk 0:02:02.1]} 36... Rc2 {[%clk 0:00:46.5]} 37. Nd6+ {[%clk
0:02:01.8]} 37... Kg8 {[%clk 0:00:39.7]} 38. Nb7 {[%clk 0:01:55.1]} 38... f4
{[%clk 0:00:30.7]} 39. d6 {[%clk 0:01:53.3]} 39... Bf6 {[%clk 0:00:11.3]} 40.
Re1 {[%clk 0:01:52.9]} 40... e3 {[%clk 0:00:10.6]} 41. fxe3 {[%clk 0:01:52.6]}
41... Bc6 {[%clk 0:00:11.1]} 42. Na5 {[%clk 0:01:23.7]} 42... Bxg2 {[%clk
0:00:11.3]} 43. exf4 {[%clk 0:01:14.3]} 43... Bxh3 {[%clk 0:00:11.2]} 44. Bf2
{[%clk 0:01:06.8]} 44... Rd2 {[%clk 0:00:05.9]} 45. Nb7 {[%clk 0:01:05.9]} 45...
h5 {[%clk 0:00:04.5]} 46. b5 {[%clk 0:01:01.2]} 46... h4 {[%clk 0:00:04.5]} 47.
b6 {[%clk 0:01:01.5]} 47... Bg4 {[%clk 0:00:02.8]} 48. Nc5 {[%clk 0:00:55.6]}
48... Rxf2 {[%clk 0:00:03.1]} 49. Kxf2 {[%clk 0:00:45.3]} 49... Bd4+ {[%clk
0:00:03.2]} 50. Kg2 {[%clk 0:00:45.6]} 50... Bxc5 {[%clk 0:00:03.5]} 51. b7
{[%clk 0:00:46.2]} 51... Bxd6 {[%clk 0:00:03.3]} 52. Re8+ {[%clk 0:00:42.8]}
52... Kf7 {[%clk 0:00:03.2]} 53. b8=Q {[%clk 0:00:43.7]} 53... Bxb8 {[%clk
0:00:03.6]} 54. Rxb8 {[%clk 0:00:44.6]} 54... Kf6 {[%clk 0:00:03.7]} 55. Rb5
{[%clk 0:00:44.7]} 55... Ke6 {[%clk 0:00:03.1]} 56. Rg5 {[%clk 0:00:44.8]} 56...
Bf5 {[%clk 0:00:02.3]} 57. Kf3 {[%clk 0:00:44.6]} 57... h3 {[%clk 0:00:02.8]}
58. Rg1 {[%clk 0:00:43.5]} 58... Kf6 {[%clk 0:00:02.9]} 59. Kg3 {[%clk
0:00:43.5]} 59... Ke6 {[%clk 0:00:02.9]} 60. Re1+ {[%clk 0:00:44.1]} 60... Kf6
{[%clk 0:00:02.8]} 61. Re5 {[%clk 0:00:45]} 61... Kf7 {[%clk 0:00:02.7]} 62. Kh4
{[%clk 0:00:43.7]} 62... h2 {[%clk 0:00:03]} 63. Re1 {[%clk 0:00:42.2]} 63...
Be4 {[%clk 0:00:03.6]} 64. Kg5 {[%clk 0:00:42.3]} 64... h1=Q {[%clk 0:00:02.6]}
65. Rxh1 {[%clk 0:00:42.3]} 65... Bxh1 {[%clk 0:00:03.5]} 66. f5 {[%clk
0:00:43]} 66... gxf5 {[%clk 0:00:04.4]} 67. Kxf5 {[%clk 0:00:43.9]} 1/2-1/2

[Event "Late-Titled-Tuesday-Blitz-May-14-2024"]
[Site "Chess.com"]
[Date "2024.05.14"]
[Round "11"]
[White "ChristopherYoo"]
[Black "Jospem"]
[Result "1-0"]
[WhiteElo "3024"]
[BlackElo "3023"]
[TimeControl "180+1"]
[EndTime "16:04:35 PDT"]
[Termination "ChristopherYoo won on time"]

1. e4 {[%clk 0:03:00.9]} 1... c5 {[%clk 0:03:00.1]} 2. Nf3 {[%clk 0:03:00.8]}
2... d6 {[%clk 0:03:00.7]} 3. d4 {[%clk 0:03:01.2]} 3... cxd4 {[%clk 0:03:01.5]}
4. Nxd4 {[%clk 0:03:01.5]} 4... Nf6 {[%clk 0:03:02.4]} 5. Nc3 {[%clk 0:03:01.8]}
5... a6 {[%clk 0:03:02.3]} 6. Bg5 {[%clk 0:03:01.6]} 6... e6 {[%clk 0:03:01.5]}
7. f4 {[%clk 0:03:00.8]} 7... h6 {[%clk 0:03:02.2]} 8. Bh4 {[%clk 0:03:00.2]}
8... Nbd7 {[%clk 0:03:02.7]} 9. Qe2 {[%clk 0:02:44]} 9... e5 {[%clk 0:02:52.8]}
10. fxe5 {[%clk 0:02:32.2]} 10... dxe5 {[%clk 0:02:53.1]} 11. O-O-O {[%clk
0:02:27.9]} 11... exd4 {[%clk 0:02:47]} 12. e5 {[%clk 0:02:26.6]} 12... Be7
{[%clk 0:02:47.5]} 13. exf6 {[%clk 0:02:24.9]} 13... Nxf6 {[%clk 0:02:47.8]} 14.
Bxf6 {[%clk 0:02:23.5]} 14... gxf6 {[%clk 0:02:48.7]} 15. Qe4 {[%clk 0:02:14.2]}
15... f5 {[%clk 0:02:48.8]} 16. Qe5 {[%clk 0:02:06.9]} 16... O-O {[%clk
0:02:48.7]} 17. Nd5 {[%clk 0:02:04]} 17... Bg5+ {[%clk 0:02:37.3]} 18. Kb1
{[%clk 0:02:02.9]} 18... Re8 {[%clk 0:02:37.6]} 19. Qxd4 {[%clk 0:02:01.4]}
19... Re4 {[%clk 0:02:38]} 20. Qf2 {[%clk 0:01:39.3]} 20... Be6 {[%clk
0:02:26.4]} 21. c4 {[%clk 0:01:38.2]} 21... Rf4 {[%clk 0:01:29.3]} 22. Qc2
{[%clk 0:01:33.6]} 22... Bxd5 {[%clk 0:01:29.6]} 23. Rxd5 {[%clk 0:01:34.1]}
23... Qb6 {[%clk 0:01:30.3]} 24. c5 {[%clk 0:01:21.7]} 24... Qe6 {[%clk
0:01:04.5]} 25. Bc4 {[%clk 0:01:20.5]} 25... Qe4 {[%clk 0:01:00.5]} 26. Qxe4
{[%clk 0:01:18]} 26... fxe4 {[%clk 0:01:01]} 27. Re1 {[%clk 0:01:01.6]} 27...
Re8 {[%clk 0:01:01.3]} 28. Rd7 {[%clk 0:00:29.3]} 28... e3 {[%clk 0:01:00.2]}
29. Bd3 {[%clk 0:00:29.4]} 29... Rf2 {[%clk 0:00:29.8]} 30. Re2 {[%clk
0:00:27.7]} 30... Re5 {[%clk 0:00:30.4]} 31. b4 {[%clk 0:00:25.2]} 31... Re4
{[%clk 0:00:27.4]} 32. a3 {[%clk 0:00:23.7]} 32... Ref4 {[%clk 0:00:26.7]} 33.
Kc2 {[%clk 0:00:23.7]} 33... Rxe2+ {[%clk 0:00:23.1]} 34. Bxe2 {[%clk
0:00:24.6]} 34... Rf2 {[%clk 0:00:23.9]} 35. Kd3 {[%clk 0:00:24.6]} 35... Rxg2
{[%clk 0:00:22.4]} 36. Rxb7 {[%clk 0:00:24.3]} 36... Rg1 {[%clk 0:00:21.8]} 37.
Rb6 {[%clk 0:00:18]} 37... Ra1 {[%clk 0:00:17.1]} 38. Rxa6 {[%clk 0:00:17.9]}
38... Ra2 {[%clk 0:00:17.6]} 39. Ra8+ {[%clk 0:00:16.4]} 39... Kg7 {[%clk
0:00:17.7]} 40. Bg4 {[%clk 0:00:14.1]} 40... Rd2+ {[%clk 0:00:17.8]} 41. Kc3
{[%clk 0:00:12.9]} 41... f5 {[%clk 0:00:15.5]} 42. Bh5 {[%clk 0:00:05.9]} 42...
Rxh2 {[%clk 0:00:14.6]} 43. c6 {[%clk 0:00:06.4]} 43... Rxh5 {[%clk 0:00:05.1]}
44. c7 {[%clk 0:00:06.2]} 44... e2 {[%clk 0:00:04.9]} 45. Re8 {[%clk 0:00:06.7]}
45... Rh1 {[%clk 0:00:05.3]} 46. Rxe2 {[%clk 0:00:06.2]} 46... Rc1+ {[%clk
0:00:01.4]} 47. Rc2 {[%clk 0:00:06.8]} 47... Bf6+ {[%clk 0:00:01.8]} 48. Kb3
{[%clk 0:00:06.8]} 48... Rb1+ {[%clk 0:00:02.2]} 49. Ka4 {[%clk 0:00:06.8]}
49... Be5 {[%clk 0:00:01.6]} 50. c8=Q {[%clk 0:00:07]} 50... Rf1 {[%clk
0:00:02.5]} 51. Qe6 {[%clk 0:00:06.6]} 51... Bf6 {[%clk 0:00:02.9]} 52. Rc6
{[%clk 0:00:06.7]} 52... Bg5 {[%clk 0:00:02.5]} 53. Qd7+ {[%clk 0:00:07]} 1-0

[Event "Late-Titled-Tuesday-Blitz-May-14-2024"]
[Site "Chess.com"]
[Date "2024.05.14"]
[Round "11"]
[White "Msb2"]
[Black "GMBenjaminBok"]
[Result "1-0"]
[WhiteElo "3086"]
[BlackElo "3062"]
[TimeControl "180+1"]
[EndTime "16:04:36 PDT"]
[Termination "Msb2 won on time"]

1. d4 {[%clk 0:03:00.9]} 1... Nf6 {[%clk 0:03:00.1]} 2. c4 {[%clk 0:03:00.9]}
2... e6 {[%clk 0:03:00.7]} 3. Nc3 {[%clk 0:03:01.4]} 3... Bb4 {[%clk 0:03:01]}
4. e3 {[%clk 0:03:02.1]} 4... O-O {[%clk 0:03:01.2]} 5. Bd2 {[%clk 0:03:02.8]}
5... b6 {[%clk 0:03:01.2]} 6. Nf3 {[%clk 0:03:02.6]} 6... d5 {[%clk 0:03:01.5]}
7. cxd5 {[%clk 0:03:02.4]} 7... exd5 {[%clk 0:03:02.1]} 8. Rc1 {[%clk
0:03:03.2]} 8... Bb7 {[%clk 0:03:01.3]} 9. Bd3 {[%clk 0:03:02.8]} 9... Re8
{[%clk 0:03:01]} 10. Ne5 {[%clk 0:03:03.4]} 10... Bf8 {[%clk 0:03:01.1]} 11. f4
{[%clk 0:03:04]} 11... c5 {[%clk 0:03:01.3]} 12. g4 {[%clk 0:03:04.8]} 12... Nc6
{[%clk 0:02:58]} 13. g5 {[%clk 0:03:04.3]} 13... Ne4 {[%clk 0:02:32]} 14. Nxe4
{[%clk 0:03:04.1]} 14... dxe4 {[%clk 0:02:32.9]} 15. Bb5 {[%clk 0:03:04.8]}
15... Nxd4 {[%clk 0:02:22]} 16. exd4 {[%clk 0:03:02.2]} 16... e3 {[%clk
0:02:17.5]} 17. Bxe3 {[%clk 0:03:01.5]} 17... cxd4 {[%clk 0:02:07.6]} 18. Bxe8
{[%clk 0:02:53.2]} 18... Qxe8 {[%clk 0:02:08.5]} 19. O-O {[%clk 0:02:25.7]}
19... dxe3 {[%clk 0:02:08.7]} 20. Qd7 {[%clk 0:02:26.3]} 20... Qxd7 {[%clk
0:01:32.4]} 21. Nxd7 {[%clk 0:02:27.2]} 21... Rd8 {[%clk 0:01:32.4]} 22. Rc7
{[%clk 0:01:36.5]} 22... Bc8 {[%clk 0:01:26.7]} 23. Nxf8 {[%clk 0:01:31.5]}
23... Kxf8 {[%clk 0:01:20.1]} 24. Re1 {[%clk 0:01:30.9]} 24... Re8 {[%clk
0:01:17.4]} 25. Rc3 {[%clk 0:01:22.6]} 25... e2 {[%clk 0:01:15.7]} 26. Kf2
{[%clk 0:01:23.5]} 26... Bg4 {[%clk 0:01:11.5]} 27. h3 {[%clk 0:01:23.5]} 27...
Bh5 {[%clk 0:01:11.2]} 28. Rc7 {[%clk 0:01:20.3]} 28... g6 {[%clk 0:00:58.7]}
29. Rxa7 {[%clk 0:01:04.2]} 29... Re4 {[%clk 0:00:58.4]} 30. Rb7 {[%clk
0:01:04.4]} 30... Rxf4+ {[%clk 0:00:58.5]} 31. Ke3 {[%clk 0:01:04.9]} 31... Rf1
{[%clk 0:00:44.4]} 32. Kd2 {[%clk 0:01:04.8]} 32... Rf5 {[%clk 0:00:44.8]} 33.
Rxb6 {[%clk 0:00:41.5]} 33... Rd5+ {[%clk 0:00:44.8]} 34. Ke3 {[%clk 0:00:41.7]}
34... Re5+ {[%clk 0:00:44.4]} 35. Kd4 {[%clk 0:00:41]} 35... Rxg5 {[%clk
0:00:42.2]} 36. a4 {[%clk 0:00:37.4]} 36... Rf5 {[%clk 0:00:41.9]} 37. Kc3
{[%clk 0:00:31.2]} 37... Rd5 {[%clk 0:00:33.3]} 38. Rb8+ {[%clk 0:00:23.1]}
38... Ke7 {[%clk 0:00:33.7]} 39. Rb5 {[%clk 0:00:18.7]} 39... Rd1 {[%clk
0:00:22.2]} 40. Re5+ {[%clk 0:00:19]} 40... Kd6 {[%clk 0:00:22.6]} 41. R1xe2
{[%clk 0:00:19.4]} 41... Bxe2 {[%clk 0:00:22.8]} 42. Rxe2 {[%clk 0:00:20.3]}
42... f5 {[%clk 0:00:20.1]} 43. a5 {[%clk 0:00:20.2]} 43... g5 {[%clk
0:00:13.6]} 44. b4 {[%clk 0:00:19.9]} 44... Ra1 {[%clk 0:00:10.8]} 45. Kb2
{[%clk 0:00:19.1]} 45... Ra4 {[%clk 0:00:11]} 46. Kb3 {[%clk 0:00:19.7]} 46...
Ra1 {[%clk 0:00:11.6]} 47. Rd2+ {[%clk 0:00:08.3]} 47... Kc6 {[%clk 0:00:09.9]}
48. Kb2 {[%clk 0:00:07.7]} 48... Ra4 {[%clk 0:00:09.4]} 49. Rd4 {[%clk
0:00:08.4]} 49... f4 {[%clk 0:00:08]} 50. b5+ {[%clk 0:00:06.8]} 50... Kxb5
{[%clk 0:00:08.2]} 51. Rxa4 {[%clk 0:00:07.7]} 51... Kxa4 {[%clk 0:00:07.3]} 52.
a6 {[%clk 0:00:08.3]} 52... f3 {[%clk 0:00:07.9]} 53. a7 {[%clk 0:00:09.2]}
53... Kb4 {[%clk 0:00:08.4]} 54. a8=Q {[%clk 0:00:10.1]} 54... f2 {[%clk
0:00:07.6]} 55. Qg2 {[%clk 0:00:10.2]} 1-0

[Event "Late-Titled-Tuesday-Blitz-May-14-2024"]
[Site "Chess.com"]
[Date "2024.05.14"]
[Round "11"]
[White "only_strong_moves"]
[Black "betta2004"]
[Result "0-1"]
[WhiteElo "2663"]
[BlackElo "2574"]
[TimeControl "180+1"]
[EndTime "16:04:36 PDT"]
[Termination "betta2004 won on time"]

1. Nc3 {[%clk 0:03:00.9]} 1... e5 {[%clk 0:02:55.5]} 2. Nf3 {[%clk 0:03:00.7]}
2... Nc6 {[%clk 0:02:55.3]} 3. d4 {[%clk 0:03:01.2]} 3... exd4 {[%clk
0:02:56.2]} 4. Nxd4 {[%clk 0:03:01.9]} 4... Nf6 {[%clk 0:02:57]} 5. Bg5 {[%clk
0:03:02.5]} 5... Bb4 {[%clk 0:02:56.8]} 6. Nxc6 {[%clk 0:03:01.9]} 6... bxc6
{[%clk 0:02:57.7]} 7. Qd4 {[%clk 0:03:02.2]} 7... Be7 {[%clk 0:02:54.9]} 8. e4
{[%clk 0:03:01.4]} 8... d6 {[%clk 0:02:55.2]} 9. Bd3 {[%clk 0:02:59.4]} 9... h6
{[%clk 0:02:55.3]} 10. Bh4 {[%clk 0:02:58.1]} 10... c5 {[%clk 0:02:52.6]} 11.
Qe3 {[%clk 0:02:57.9]} 11... Ng4 {[%clk 0:02:52.5]} 12. Bxe7 {[%clk 0:02:52.8]}
12... Qxe7 {[%clk 0:02:48.8]} 13. Qe2 {[%clk 0:02:52.9]} 13... Ne5 {[%clk
0:02:45.4]} 14. Bb5+ {[%clk 0:02:52.9]} 14... c6 {[%clk 0:02:45.5]} 15. Ba4
{[%clk 0:02:52.1]} 15... O-O {[%clk 0:02:42.4]} 16. f4 {[%clk 0:02:52.2]} 16...
Ng6 {[%clk 0:02:38]} 17. O-O {[%clk 0:02:51.6]} 17... Rb8 {[%clk 0:02:37.1]} 18.
Bxc6 {[%clk 0:02:48.4]} 18... Rxb2 {[%clk 0:02:34.5]} 19. Nd5 {[%clk 0:02:48.6]}
19... Qd8 {[%clk 0:02:27.8]} 20. Ba4 {[%clk 0:02:48]} 20... Rb8 {[%clk
0:02:22.3]} 21. Bb3 {[%clk 0:02:46.6]} 21... Be6 {[%clk 0:02:22.2]} 22. Rad1
{[%clk 0:02:42.4]} 22... Bxd5 {[%clk 0:02:21]} 23. Rxd5 {[%clk 0:02:43.3]} 23...
Qf6 {[%clk 0:02:14.3]} 24. Qg4 {[%clk 0:02:37.3]} 24... Kh7 {[%clk 0:02:08.4]}
25. Rf5 {[%clk 0:02:26.6]} 25... Qd4+ {[%clk 0:02:07.2]} 26. Kh1 {[%clk
0:02:25.3]} 26... c4 {[%clk 0:02:03.5]} 27. Ba4 {[%clk 0:02:06.1]} 27... Qxe4
{[%clk 0:02:01.5]} 28. Ra5 {[%clk 0:01:59.8]} 28... Rb2 {[%clk 0:01:49.8]} 29.
Bd7 {[%clk 0:01:55.1]} 29... Qxc2 {[%clk 0:01:37.7]} 30. Bf5 {[%clk 0:01:38.6]}
30... Qe2 {[%clk 0:01:28.9]} 31. Qxe2 {[%clk 0:01:38.7]} 31... Rxe2 {[%clk
0:01:29.8]} 32. Rxa7 {[%clk 0:01:39.2]} 32... d5 {[%clk 0:01:28.6]} 33. Rc7
{[%clk 0:01:35.2]} 33... Kg8 {[%clk 0:01:17.7]} 34. g3 {[%clk 0:01:23.7]} 34...
Ne7 {[%clk 0:01:09.6]} 35. Bg4 {[%clk 0:01:20.4]} 35... Re3 {[%clk 0:01:05.9]}
36. Kg2 {[%clk 0:01:18.2]} 36... Ra8 {[%clk 0:00:58.9]} 37. Kf2 {[%clk
0:01:18.4]} 37... d4 {[%clk 0:00:56.3]} 38. Rxc4 {[%clk 0:01:16.3]} 38... Rxa2+
{[%clk 0:00:56.6]} 39. Kg1 {[%clk 0:01:17]} 39... d3 {[%clk 0:00:53.4]} 40. Rd4
{[%clk 0:01:16.4]} 40... Nc6 {[%clk 0:00:47.8]} 41. Rd6 {[%clk 0:01:16]} 41...
Nb4 {[%clk 0:00:47.3]} 42. Rd1 {[%clk 0:00:59.8]} 42... g6 {[%clk 0:00:35.2]}
43. Rd4 {[%clk 0:00:56.3]} 43... Rb2 {[%clk 0:00:29.6]} 44. Kf1 {[%clk
0:00:28.6]} 44... h5 {[%clk 0:00:23.7]} 45. Bd7 {[%clk 0:00:17.6]} 45... Ree2
{[%clk 0:00:20.6]} 46. Bb5 {[%clk 0:00:04.4]} 46... Rf2+ {[%clk 0:00:19]} 47.
Kg1 {[%clk 0:00:04.4]} 47... Rg2+ {[%clk 0:00:19.4]} 48. Kf1 {[%clk 0:00:04.6]}
48... Rxh2 {[%clk 0:00:12]} 49. Kg1 {[%clk 0:00:05.2]} 49... Rhg2+ {[%clk
0:00:05]} 50. Kf1 {[%clk 0:00:05.8]} 50... Rxg3 {[%clk 0:00:05.7]} 0-1